{"text_format":"3","workbook":"xlsx","n_sheets":1,"sheets":["Sąskaitų stebėjimo priemonė"],"not_rendered":{"defined_names":2},"read":"whole","date_system":"1900"}

{"sheet":"Sąskaitų stebėjimo priemonė","index":0,"n_rows":9,"n_cols":10,"rows_kept":9}
[null,"Sąskaitos faktūros sekimo priemonė"]
[null,"Sąskaitos faktūros Nr.","Data","Mokėjimo terminas","Klientas","Suma ","Vėlavimo mokestis ","Iš viso apmokėta","Apmokėjimo data","Neapmokėta"]
[null,1001,{"$f":"DATE(YEAR(TODAY()),1,15)","v":"2018-01-15"},{"$f":"DATE(YEAR(TODAY()),2,15)","v":"2018-02-15"},"Bočkutė",{"v":40398,"d":"40,398.00 €"},{"$f":"IFERROR(IF(Sąskaitos_faktūros[[#This Row],[Mokėjimo terminas]]>=Sąskaitos_faktūros[[#This Row],[Apmokėjimo data]],,5), \"\")","v":0},{"v":40398,"d":"40,398.00 €"},{"$f":"DATE(YEAR(TODAY()),2,1)","v":"2018-02-01"},{"$f":"IFERROR(Sąskaitos_faktūros[[#This Row],[Suma ]]-Sąskaitos_faktūros[[#This Row],[Iš viso apmokėta]]+Sąskaitos_faktūros[[#This Row],[Vėlavimo mokestis ]], \"\")","v":0}]
[null,1002,{"$f":"DATE(YEAR(TODAY()),2,11)","v":"2018-02-11"},{"$f":"DATE(YEAR(TODAY()),4,1)","v":"2018-04-01"},"Bočkutė",{"v":31400,"d":"31,400.00 €"},{"$f":"IFERROR(IF(Sąskaitos_faktūros[[#This Row],[Mokėjimo terminas]]>=Sąskaitos_faktūros[[#This Row],[Apmokėjimo data]],,5), \"\")","v":{"v":5,"d":"5.00 €"}},{"v":15000,"d":"15,000.00 €"},{"$f":"DATE(YEAR(TODAY()),4,10)","v":"2018-04-10"},{"$f":"IFERROR(Sąskaitos_faktūros[[#This Row],[Suma ]]-Sąskaitos_faktūros[[#This Row],[Iš viso apmokėta]]+Sąskaitos_faktūros[[#This Row],[Vėlavimo mokestis ]], \"\")","v":{"v":16405,"d":"16,405.00 €"}}]
[null,1003,{"$f":"DATE(YEAR(TODAY()),2,17)","v":"2018-02-17"},{"$f":"DATE(YEAR(TODAY()),4,15)","v":"2018-04-15"},"Contoso",{"v":27598,"d":"27,598.00 €"},{"$f":"IFERROR(IF(Sąskaitos_faktūros[[#This Row],[Mokėjimo terminas]]>=Sąskaitos_faktūros[[#This Row],[Apmokėjimo data]],,5), \"\")","v":0},{"v":11000,"d":"11,000.00 €"},{"$f":"DATE(YEAR(TODAY()),3,17)","v":"2018-03-17"},{"$f":"IFERROR(Sąskaitos_faktūros[[#This Row],[Suma ]]-Sąskaitos_faktūros[[#This Row],[Iš viso apmokėta]]+Sąskaitos_faktūros[[#This Row],[Vėlavimo mokestis ]], \"\")","v":{"v":16598,"d":"16,598.00 €"}}]
[null,1004,{"$f":"DATE(YEAR(TODAY()),3,8)","v":"2018-03-08"},{"$f":"DATE(YEAR(TODAY()),4,1)","v":"2018-04-01"},"Jonas Irvinskas",{"v":240,"d":"240.00 €"},{"$f":"IFERROR(IF(Sąskaitos_faktūros[[#This Row],[Mokėjimo terminas]]>=Sąskaitos_faktūros[[#This Row],[Apmokėjimo data]],,5), \"\")","v":{"v":5,"d":"5.00 €"}},{"v":150,"d":"150.00 €"},{"$f":"DATE(YEAR(TODAY()),4,16)","v":"2018-04-16"},{"$f":"IFERROR(Sąskaitos_faktūros[[#This Row],[Suma ]]-Sąskaitos_faktūros[[#This Row],[Iš viso apmokėta]]+Sąskaitos_faktūros[[#This Row],[Vėlavimo mokestis ]], \"\")","v":{"v":95,"d":"95.00 €"}}]
[null,1005,{"$f":"DATE(YEAR(TODAY()),3,17)","v":"2018-03-17"},{"$f":"DATE(YEAR(TODAY()),4,30)","v":"2018-04-30"},"Contoso",{"v":300,"d":"300.00 €"},{"$f":"IFERROR(IF(Sąskaitos_faktūros[[#This Row],[Mokėjimo terminas]]>=Sąskaitos_faktūros[[#This Row],[Apmokėjimo data]],,5), \"\")","v":0},{"v":150,"d":"150.00 €"},{"$f":"DATE(YEAR(TODAY()),4,11)","v":"2018-04-11"},{"$f":"IFERROR(Sąskaitos_faktūros[[#This Row],[Suma ]]-Sąskaitos_faktūros[[#This Row],[Iš viso apmokėta]]+Sąskaitos_faktūros[[#This Row],[Vėlavimo mokestis ]], \"\")","v":{"v":150,"d":"150.00 €"}}]
[null,1006,{"$f":"DATE(YEAR(TODAY()),4,1)","v":"2018-04-01"},{"$f":"DATE(YEAR(TODAY()),6,1)","v":"2018-06-01"},"Inga Vėdraitė",{"v":2950,"d":"2,950.00 €"},{"$f":"IFERROR(IF(Sąskaitos_faktūros[[#This Row],[Mokėjimo terminas]]>=Sąskaitos_faktūros[[#This Row],[Apmokėjimo data]],,5), \"\")","v":0},{"v":2400,"d":"2,400.00 €"},{"$f":"DATE(YEAR(TODAY()),4,28)","v":"2018-04-28"},{"$f":"IFERROR(Sąskaitos_faktūros[[#This Row],[Suma ]]-Sąskaitos_faktūros[[#This Row],[Iš viso apmokėta]]+Sąskaitos_faktūros[[#This Row],[Vėlavimo mokestis ]], \"\")","v":{"v":550,"d":"550.00 €"}}]
[null,"Iš viso",{"$nulls":3},{"$f":"SUBTOTAL(109,Sąskaitos_faktūros[[Suma ]])","v":{"v":102886,"d":"102,886.00 €"}},null,{"$f":"SUBTOTAL(109,Sąskaitos_faktūros[Iš viso apmokėta])","v":{"v":69098,"d":"69,098.00 €"}},null,{"$f":"SUBTOTAL(109,Sąskaitos_faktūros[Neapmokėta])","v":{"v":33798,"d":"33,798.00 €"}}]